bitfinex/quotes_SOLUSD_20241111
["timestamp","ask_amount","ask_price","bid_price","bid_amount"]
[1731358114974,23.776884,220.89,220.74,21.50996633]
[1731358116787,23.776884,220.89,220.73,23.776884]
[1731358117172,23.776884,220.89,220.74,21.50996633]
[1731358118481,24.072884,220.89,220.74,21.50996633]
[1731358118688,23.776884,220.87,220.67,23.776884]
[1731358118896,23.776884,220.87,220.71,21.50996633]
[1731358119386,23.776884,220.87,220.73,21.50996633]
[1731358119688,6.0278,220.88,220.77,21.50996633]
[1731358121576,6.0278,220.88,220.75,21.50996633]
[1731358122001,6.0278,220.88,220.73,21.50996633]
[1731358122380,6.0278,220.88,220.79,21.50996633]
[1731358122579,6.0278,220.88,220.81,21.50996633]
[1731358122795,6.0278,220.88,220.8,21.50996633]
[1731358123001,6.0278,220.88,220.82,21.50996633]
[1731358123197,6.0278,220.88,220.7,0.1]
[1731358123198,6.0278,220.88,220.84,21.50996633]
[1731358123378,6.0278,220.88,220.77,21.50996633]
[1731358123379,0.296,220.89,220.86,21.50996633]
[1731358123583,0.296,220.89,220.88,21.50996633]
[1731358124482,0.296,220.89,220.88,45.28685033]
[1731358125505,0.296,220.89,220.88,23.776884]
[1731358125807,0.296,220.89,220.88,45.28685033]
[1731358126906,6.1903,221.06,220.95,23.776884]
[1731358127089,6.1903,221.06,221.03,21.50996633]
[1731358127285,6.1903,221.12,221.05,21.50996633]
[1731358127490,6.1903,221.12,220.97,23.776884]
[1731358127802,6.1903,221.12,221.02,21.50996633]
[1731358129987,6.1903,221.12,220.98,21.50996633]
[1731358130193,16.0521,221.16,221.02,21.50996633]
[1731358130601,23.776884,221.15,221.0,21.50996633]
[1731358130991,23.776884,221.15,220.97,23.776884]
[1731358131189,23.776884,221.13,220.97,45.28685033]
[1731358131809,27.46709022,221.13,220.97,21.50996633]
[1731358132010,30.04757275,221.13,220.97,21.50996633]
[1731358132309,23.776884,221.13,220.97,21.50996633]
[1731358135407,16.0521,221.16,220.9,0.1]
[1731358135709,16.0521,221.16,221.02,21.50996633]
[1731358136110,16.0521,221.16,221.01,23.776884]
[1731358136706,16.0521,221.16,221.0,21.50996633]
[1731358136904,16.0521,221.16,220.91,23.776884]
[1731358137104,23.776884,221.15,220.98,21.50996633]
[1731358137291,23.776884,221.13,220.96,21.50996633]
[1731358137690,30.04757275,221.13,220.96,21.50996633]
[1731358137993,23.776884,221.11,220.94,21.50996633]
[1731358138190,26.4493,221.12,220.85,6.159]
[1731358138191,20.0,221.08,220.85,6.159]
[1731358138415,20.0,221.04,220.79,6.4427]
[1731358138595,23.776884,221.01,220.84,21.50996633]
[1731358138793,23.776884,221.01,220.86,21.50996633]
[1731358139702,23.776884,221.02,220.86,21.50996633]
[1731358140504,6.27068875,221.03,220.89,21.50996633]
[1731358140695,23.776884,221.05,220.89,21.50996633]
[1731358141407,28.47179816,221.05,220.8,20.1]
[1731358141720,34.74248691,221.05,220.89,21.50996633]
[1731358142009,29.60077343,221.05,220.86,21.50996633]
[1731358142212,23.776884,221.03,220.83,21.50996633]
[1731358142389,23.776884,221.03,220.84,21.50996633]
[1731358142596,6.3153,221.02,220.83,21.50996633]
[1731358142803,23.776884,221.01,220.81,21.50996633]
[1731358143593,43.776884,220.99,220.77,21.50996633]
[1731358143794,50.04757275,220.99,220.77,21.50996633]
[1731358144002,23.776884,220.97,220.77,21.50996633]
[1731358144410,23.776884,220.97,220.7,0.1]
[1731358144411,23.776884,220.97,220.8,21.50996633]
[1731358144615,23.776884,220.98,220.79,21.50996633]
[1731358145111,28.8035316,220.98,220.79,21.50996633]
[1731358145516,30.03134656,220.98,220.79,21.50996633]
[1731358145815,30.03134656,220.98,220.8,21.50996633]
[1731358145999,30.03134656,220.98,220.79,21.50996633]
[1731358146408,23.776884,220.96,220.78,21.50996633]
[1731358146602,30.04757275,220.96,220.78,21.50996633]
[1731358146802,23.776884,220.94,220.76,21.50996633]
[1731358147007,23.776884,220.92,220.77,21.50996633]
[1731358147201,23.776884,220.92,220.79,21.50996633]
[1731358147408,21.7451,220.93,220.79,21.50996633]
[1731358147638,21.7451,220.93,220.82,21.50996633]
[1731358147791,21.7451,220.93,220.81,21.50996633]
[1731358149298,21.7451,220.93,220.8,21.50996633]
[1731358149514,21.7451,220.93,220.71,0.1]
[1731358149515,21.7451,220.93,220.81,21.50996633]
[1731358150119,21.7451,220.93,220.77,21.50996633]
[1731358150307,21.7451,220.93,220.89,21.50996633]
[1731358150308,6.3153,220.93,220.89,21.50996633]
[1731358150500,6.3153,220.93,220.78,44.68214737]
[1731358150501,6.3153,220.93,220.86,21.50996633]
[1731358150698,6.3153,220.93,220.84,21.50996633]
[1731358151018,6.3153,220.93,220.85,21.50996633]
[1731358151202,6.3153,220.93,220.86,21.50996633]
[1731358151407,6.3153,220.93,220.84,21.50996633]
[1731358152319,6.3153,220.93,220.82,21.50996633]
[1731358152518,6.3153,220.93,220.78,23.776884]
[1731358152716,6.3153,220.93,220.8,21.50996633]
[1731358153040,6.3153,220.93,220.84,21.50996633]
[1731358153419,6.3153,220.93,220.88,21.50996633]
[1731358154317,6.3153,220.93,220.87,21.50996633]
[1731358154715,6.3153,220.93,220.78,23.776884]
[1731358154919,6.3153,220.93,220.83,23.776884]
[1731358155141,6.3153,220.93,220.84,21.50996633]
[1731358155305,6.3153,220.93,220.85,21.50996633]
[1731358155506,6.3153,220.93,220.86,21.50996633]
[1731358155713,6.3153,220.93,220.85,21.50996633]
[1731358156125,6.3153,220.93,220.84,21.50996633]
[1731358156526,6.3153,220.93,220.83,23.776884]
[1731358156716,6.3153,220.93,220.82,23.776884]
[1731358157114,6.3153,220.93,220.82,45.28685033]
[1731358157505,6.3153,220.93,220.83,21.50996633]
[1731358157909,6.3153,220.93,220.82,45.28685033]
[1731358158334,6.3153,220.93,220.85,21.50996633]
[1731358158511,6.3153,220.93,220.84,21.50996633]
[1731358158833,6.3153,220.93,220.83,21.50996633]
[1731358159348,6.3153,220.93,220.82,45.28685033]
[1731358160246,6.3153,220.93,220.71,0.1]
[1731358160247,6.3153,220.93,220.81,23.776884]
[1731358160416,6.27068875,221.0,220.84,21.50996633]
[1731358160617,6.5275,221.03,220.93,21.50996633]
[1731358160824,6.5275,221.03,220.95,21.50996633]
[1731358161021,6.5275,221.03,220.97,21.50996633]
[1731358161439,6.5275,221.03,220.95,21.50996633]
[1731358161651,6.5275,221.03,220.93,21.50996633]
[1731358162929,6.5275,221.03,220.95,21.50996633]
[1731358163351,6.5275,221.03,220.93,21.50996633]
[1731358163531,6.5275,221.03,220.95,21.50996633]
[1731358164032,6.5275,221.03,220.93,21.50996633]
[1731358164441,6.5275,221.03,220.91,21.50996633]
[1731358164930,6.5275,221.03,220.89,21.50996633]
[1731358166027,23.776884,221.02,220.89,21.50996633]
[1731358166330,23.776884,221.02,220.82,21.2133]
[1731358166331,6.5275,221.03,220.91,21.50996633]
[1731358169145,23.776884,221.02,220.89,21.50996633]
[1731358170153,23.776884,221.02,220.82,21.2133]
[1731358170154,6.5275,221.03,220.97,21.50996633]
[1731358170438,0.1,221.19,220.88,21.60996633]
[1731358170439,22.9878,221.11,220.99,20.00996633]
[1731358170642,22.9878,221.11,221.01,21.50996633]
[1731358170826,22.9878,221.11,220.99,21.50996633]
[1731358171249,22.9878,221.11,221.03,21.50996633]
[1731358171447,6.3465,221.11,221.05,21.50996633]
[1731358171633,6.3465,221.11,220.97,0.1]
[1731358171634,6.3465,221.11,221.03,21.50996633]
[1731358172133,6.3465,221.11,221.01,21.50996633]
[1731358172440,6.3465,221.11,221.03,21.50996633]
[1731358174642,6.3465,221.11,220.99,21.50996633]
[1731358174851,6.3465,221.11,220.97,21.50996633]
[1731358175232,6.3465,221.11,220.99,21.50996633]
[1731358175535,6.3465,221.11,221.03,21.50996633]
[1731358176347,6.3465,221.11,221.01,21.50996633]
[1731358176548,6.3465,221.11,221.03,21.50996633]
[1731358177447,6.3465,221.11,221.01,21.50996633]
[1731358177664,6.3465,221.11,220.97,21.50996633]
[1731358177847,23.776884,221.1,220.95,21.50996633]
[1731358178145,23.776884,221.1,220.93,21.50996633]
[1731358178339,23.776884,221.1,220.91,10.0]
[1731358178547,23.776884,221.1,220.93,21.50996633]
[1731358179058,23.776884,221.1,220.91,31.50996633]
[1731358179543,6.3465,221.11,220.93,21.50996633]
[1731358179745,6.3465,221.11,220.91,10.1]
[1731358179956,6.3465,221.11,220.95,21.50996633]
[1731358180651,23.776884,221.1,220.95,21.50996633]
[1731358180854,6.3465,221.11,220.95,21.50996633]
[1731358181149,6.3465,221.11,220.97,21.50996633]
[1731358181330,6.3465,221.11,220.94,21.50996633]
[1731358181928,16.532,221.1,220.92,21.50996633]
[1731358182129,9.49751683,221.09,220.91,10.0]
[1731358182358,23.776884,221.08,220.91,10.0]
[1731358182650,23.776884,221.06,220.91,10.0]
[1731358182856,9.45052517,221.05,220.92,21.50996633]
[1731358183235,9.45052517,221.05,220.91,31.50996633]
[1731358184333,23.776884,221.02,220.91,10.0]
[1731358184531,9.17215224,221.01,220.91,10.0]
[1731358185177,9.17215224,221.01,220.91,31.50996633]
[1731358186153,9.17215224,221.01,220.91,10.0]
[1731358186853,16.3731,220.99,220.91,10.0]
[1731358187054,23.776884,220.98,220.91,10.0]
[1731358188147,16.3731,220.99,220.91,10.0]
[1731358188558,23.776884,220.98,220.91,10.0]
[1731358188738,16.3731,220.99,220.91,10.0]
[1731358190553,16.3731,220.99,220.91,0.95255772]
[1731358191568,23.776884,220.98,220.91,0.95255772]
[1731358193044,23.776884,220.96,220.91,0.95255772]
[1731358193248,23.776884,220.94,220.74,13.50639894]
[1731358193452,5.62427926,220.93,220.72,13.50639894]
[1731358193645,23.776884,220.92,220.74,13.50639894]
[1731358193854,5.62427926,220.92,220.74,13.50639894]
[1731358194062,23.776884,220.91,220.74,13.50639894]
[1731358194259,5.62427926,220.92,220.76,13.50639894]
[1731358194451,5.62427926,220.92,220.7,6.6539]
[1731358194452,23.776884,220.91,220.7,6.6539]
[1731358194650,23.776884,220.93,220.75,20.0]
[1731358195068,23.776884,220.93,220.74,13.50639894]
[1731358195362,23.776884,220.91,220.74,13.50639894]
[1731358195563,22.7584,220.92,220.78,13.50639894]
[1731358195754,22.7584,220.92,220.8,13.50639894]
[1731358196444,22.7584,220.92,220.78,13.50639894]
[1731358196859,23.776884,220.91,220.78,13.50639894]
[1731358197070,22.7584,220.92,220.81,21.61360459]
[1731358197253,22.7584,220.92,220.79,21.61360459]
[1731358198571,23.776884,220.91,220.77,21.61360459]
[1731358199454,32.97529536,220.91,220.73,21.61360459]
[1731358200055,38.59957462,220.91,220.73,21.61360459]
[1731358200266,38.59957462,220.91,220.71,21.61360459]
[1731358200579,21.9034,220.88,220.67,21.61360459]
[1731358200757,29.40116326,220.87,220.67,21.61360459]
[1731358200947,29.50116326,220.87,220.66,16.74107734]
[1731358201272,23.776884,220.83,220.65,21.61360459]
[1731358201443,5.62427926,220.82,220.65,21.61360459]
[1731358201765,23.776884,220.81,220.65,21.61360459]
[1731358202064,27.14116326,220.81,220.63,21.61360459]
[1731358202264,5.62427926,220.8,220.63,21.61360459]
[1731358202565,5.62427926,220.8,220.55,36.90100459]
[1731358202566,21.9034,220.79,220.59,21.61360459]
[1731358202768,5.62427926,220.78,220.6,21.61360459]
[1731358202969,5.62427926,220.78,220.58,21.61360459]
[1731358203359,5.62427926,220.78,220.6,21.61360459]
[1731358203562,5.62427926,220.78,220.62,21.61360459]
[1731358203876,21.9034,220.79,220.67,21.61360459]
[1731358204079,21.9034,220.79,220.65,21.61360459]
[1731358204371,21.9034,220.79,220.6,21.61360459]
[1731358204573,21.9034,220.79,220.61,21.61360459]
[1731358204785,4.66802309,220.9,220.78,21.61360459]
[1731358204978,6.0823,220.94,220.77,21.61360459]
[1731358204979,6.0823,220.94,220.79,8.10262074]
[1731358205154,6.0823,220.94,220.87,21.61360459]
[1731358205470,0.2731,220.9,220.82,21.61360459]
[1731358205677,0.2731,220.9,220.83,21.61360459]
[1731358206055,0.2731,220.9,220.82,21.61360459]
[1731358206261,0.2731,220.9,220.81,21.61360459]
[1731358206475,0.2731,220.9,220.75,21.61360459]
[1731358207053,0.2731,220.9,220.72,21.61360459]
[1731358207260,16.5042,220.89,220.7,21.61360459]
[1731358207576,23.776884,220.87,220.67,21.61360459]
[1731358207777,23.776884,220.85,220.67,21.61360459]
[1731358207983,23.776884,220.83,220.63,21.61360459]
[1731358208285,23.776884,220.81,220.62,21.61360459]
[1731358208479,23.776884,220.81,220.63,21.61360459]
[1731358208663,16.5042,220.8,220.61,21.61360459]
[1731358208872,23.776884,220.79,220.61,21.61360459]
[1731358209064,23.776884,220.79,220.6,21.61360459]
[1731358209389,23.776884,220.79,220.62,21.61360459]
[1731358209576,23.776884,220.79,220.64,21.61360459]
[1731358209762,16.5042,220.8,220.64,21.61360459]
[1731358210756,16.5042,220.8,220.62,21.61360459]
[1731358210973,16.5042,220.8,220.6,21.61360459]
[1731358211165,23.776884,220.79,220.6,21.61360459]
[1731358211372,23.776884,220.79,220.62,21.61360459]
[1731358211880,23.776884,220.79,220.61,21.61360459]
[1731358213477,23.776884,220.79,220.63,21.61360459]
[1731358214260,23.776884,220.79,220.61,21.61360459]
[1731358214897,20.0,220.78,220.59,21.61360459]
[1731358215179,20.0,220.78,220.53,35.0329181]
[1731358215180,32.73577099,220.77,220.58,21.61360459]
[1731358215383,23.776884,220.75,220.6,21.61360459]
[1731358215787,23.776884,220.75,220.58,21.61360459]
[1731358215978,23.776884,220.75,220.6,21.61360459]
[1731358216279,23.776884,220.73,220.54,41.61360459]
[1731358216484,23.776884,220.73,220.56,21.61360459]
[1731358217586,23.776884,220.73,220.6,21.61360459]
[1731358217787,6.3843,220.74,220.64,21.61360459]
[1731358218080,8.80184695,220.76,220.66,21.61360459]
[1731358218284,8.80184695,220.76,220.68,21.61360459]
[1731358218786,8.80184695,220.76,220.7,21.61360459]
[1731358219496,8.80184695,220.76,220.68,21.61360459]
[1731358219896,22.9564,220.8,220.68,21.61360459]
[1731358221183,22.9564,220.8,220.66,20.0]
[1731358221392,23.776884,220.79,220.65,21.61360459]
[1731358221583,22.9564,220.8,220.65,21.61360459]
[1731358221785,22.9564,220.8,220.69,21.61360459]
[1731358224486,22.9564,220.8,220.71,21.61360459]
[1731358224688,6.4522,220.8,220.71,21.61360459]
[1731358224999,6.2485,220.85,220.75,21.61360459]
[1731358225202,6.2485,220.85,220.77,20.0]
[1731358225387,6.2485,220.85,220.77,41.61360459]
[1731358226291,6.2485,220.85,220.75,21.61360459]
[1731358226600,0.2731,220.85,220.79,21.61360459]
[1731358227181,0.2731,220.85,220.77,21.61360459]
[1731358227388,0.2731,220.85,220.78,20.0]
[1731358227688,0.2731,220.85,220.77,21.61360459]
[1731358227884,0.2731,220.85,220.79,21.61360459]
[1731358228282,0.2731,220.85,220.77,21.61360459]
[1731358228991,0.2731,220.85,220.79,21.61360459]
[1731358229381,0.2731,220.85,220.76,21.61360459]
[1731358230103,0.2731,220.85,220.74,21.61360459]
[1731358231088,0.2731,220.85,220.75,21.61360459]
[1731358231284,0.2731,220.85,220.77,21.61360459]
[1731358231499,0.2731,220.85,220.81,21.61360459]
[1731358231805,0.2731,220.85,220.8,21.61360459]
[1731358233309,0.2731,220.85,220.83,21.61360459]
[1731358234210,0.2731,220.85,220.84,21.61360459]
[1731358234628,6.0405,220.97,220.9,161.0269]
[1731358234832,6.0405,220.97,220.9,21.61360459]
[1731358235013,6.0405,220.97,220.88,21.61360459]
[1731358235209,6.0405,220.97,220.93,21.61360459]
[1731358235516,21.2965,221.09,220.88,21.61360459]
[1731358235709,21.2965,221.09,220.86,21.61360459]
[1731358236022,21.3965,221.09,220.85,21.61360459]
[1731358236225,6.0405,221.08,220.9,21.61360459]
[1731358236517,6.0405,221.08,220.88,21.61360459]
[1731358236518,12.89755898,221.07,220.88,21.61360459]
[1731358236720,12.89755898,221.07,220.92,21.61360459]
[1731358236924,12.89755898,221.07,220.96,21.61360459]
[1731358237509,12.89755898,221.07,220.92,21.61360459]
[1731358237726,12.89755898,221.07,220.9,21.61360459]
[1731358238029,12.89755898,221.07,220.87,21.61360459]
[1731358238530,23.776884,221.06,220.85,21.61360459]
[1731358238830,23.776884,221.04,220.85,19.50792413]
[1731358239022,23.776884,221.04,220.84,21.61360459]
[1731358239215,23.776884,221.02,220.82,21.61360459]
[1731358239729,23.776884,221.02,220.8,21.61360459]
[1731358239908,6.3811,221.01,220.8,21.61360459]
[1731358240108,23.776884,221.0,220.8,21.61360459]
[1731358240323,23.776884,221.0,220.82,21.61360459]
[1731358241240,23.776884,221.0,220.84,21.61360459]
[1731358241727,23.776884,221.0,220.79,20.0]
[1731358241934,23.776884,221.0,220.82,21.61360459]
[1731358242311,23.776884,221.0,220.8,21.61360459]
[1731358244137,23.776884,221.0,220.82,21.61360459]
[1731358244537,6.5274,220.97,220.73,43.776884]
[1731358244832,23.776884,220.96,220.82,21.61360459]
[1731358245533,23.776884,220.96,220.77,20.0]
[1731358245534,23.776884,220.96,220.8,21.61360459]
[1731358246934,6.5274,220.97,220.86,21.61360459]
[1731358247241,6.5274,220.97,220.79,0.1]
[1731358247532,6.5274,220.97,220.86,21.61360459]
[1731358247838,6.5274,220.97,220.85,20.0]
[1731358248333,6.5274,220.97,220.84,21.61360459]
[1731358248719,6.5274,220.97,220.9,21.61360459]
[1731358248926,6.1224,221.02,220.95,21.61360459]
[1731358249136,16.362,221.06,220.97,21.61360459]
[1731358249334,16.362,221.06,221.01,21.61360459]
[1731358249561,6.0035,221.08,221.03,21.61360459]
[1731358249761,6.0035,221.16,221.03,21.61360459]
[1731358249935,6.0035,221.16,221.05,21.61360459]
[1731358250131,6.0035,221.16,221.03,21.61360459]
[1731358250551,6.0035,221.16,220.98,21.61360459]
[1731358250849,6.0035,221.16,220.96,21.61360459]
[1731358251053,6.0035,221.16,220.97,20.0]
[1731358251247,23.776884,221.15,220.96,21.61360459]
[1731358251449,23.776884,221.15,220.94,21.61360459]
[1731358251645,23.776884,221.15,220.98,21.61360459]
[1731358251957,23.776884,221.15,220.9,0.1]
[1731358251958,23.776884,221.15,221.0,21.61360459]
[1731358252332,23.776884,221.15,220.98,21.61360459]
[1731358254855,23.776884,221.15,221.0,21.61360459]
[1731358256054,23.776884,221.15,220.97,20.0]
[1731358256534,23.776884,221.15,221.0,21.61360459]
[1731358256739,23.776884,221.15,220.98,21.61360459]
[1731358257136,6.0035,221.16,221.03,21.61360459]
[1731358257336,6.0035,221.16,221.09,21.61360459]
[1731358257537,6.0035,221.16,221.06,21.61360459]
[1731358258035,6.0035,221.16,221.02,21.61360459]
[1731358258235,6.0035,221.16,221.03,20.0]
[1731358258455,6.0035,221.16,221.02,21.61360459]
[1731358258862,6.0035,221.16,220.98,21.61360459]
[1731358258863,23.776884,221.15,220.98,21.61360459]
[1731358259162,23.776884,221.15,220.99,0.10185066]
[1731358259343,23.776884,221.15,221.0,21.61360459]
[1731358259857,23.776884,221.15,220.92,23.776884]
[1731358260049,23.776884,221.15,220.95,21.61360459]
[1731358260938,6.556,221.12,220.93,21.61360459]
[1731358261142,23.776884,221.11,220.97,21.61360459]
[1731358261660,23.776884,221.11,220.95,21.61360459]
[1731358263161,23.776884,221.11,220.93,21.61360459]
[1731358263670,23.776884,221.07,220.91,21.61360459]
[1731358263837,23.776884,221.07,220.89,21.61360459]
[1731358264038,23.776884,221.07,220.87,21.61360459]
[1731358264363,23.776884,221.07,220.93,21.61360459]
[1731358264561,22.637,221.08,221.03,21.61360459]
[1731358264562,6.298,221.08,221.03,21.61360459]
[1731358264867,6.298,221.08,221.01,21.61360459]
[1731358265044,6.298,221.08,220.97,21.61360459]
[1731358265860,6.298,221.08,220.95,21.61360459]
[1731358266080,6.298,221.08,220.93,21.61360459]
[1731358266365,23.776884,221.07,220.84,0.1]
[1731358266542,23.776884,221.05,220.91,21.61360459]
[1731358266861,23.776884,221.05,220.92,21.61360459]
[1731358267356,23.776884,221.05,220.84,0.2]
[1731358267357,23.776884,221.03,220.88,21.61360459]
[1731358267561,23.776884,221.03,220.9,21.61360459]
[1731358267751,23.776884,221.01,220.9,21.61360459]
[1731358268364,6.1616,221.0,220.88,21.61360459]
[1731358268943,23.776884,220.99,220.86,21.61360459]
[1731358269441,29.938484,220.97,220.73,18.101526]
[1731358269776,23.776884,220.93,220.76,21.61360459]
[1731358269945,23.776884,220.93,220.78,21.61360459]
[1731358270263,23.776884,220.91,220.78,21.61360459]
[1731358270461,23.776884,220.89,220.78,21.61360459]
[1731358271463,23.776884,220.89,220.76,21.61360459]
[1731358271683,23.776884,220.89,220.78,21.61360459]
[1731358272480,8.94096202,220.9,220.8,21.61360459]
[1731358272661,8.94096202,220.9,220.84,21.61360459]
[1731358274675,8.94096202,220.9,220.85,21.61360459]
[1731358274867,8.94096202,220.9,220.83,21.61360459]
[1731358275063,8.94096202,220.9,220.81,21.61360459]
[1731358275257,21.6197,220.94,220.77,21.61360459]
[1731358275881,23.776884,220.93,220.69,24.671991]
[1731358276057,21.6197,220.94,220.83,21.61360459]
[1731358276253,21.6197,220.94,220.77,21.71360459]
[1731358276254,21.6197,220.94,220.87,21.61360459]
[1731358276857,21.6197,220.94,220.85,21.61360459]
[1731358277181,21.6197,220.94,220.79,0.1]
[1731358277182,6.1616,220.94,220.89,21.61360459]
[1731358277487,6.1616,220.94,220.87,21.61360459]
[1731358278075,6.1616,220.94,220.86,20.0]
[1731358278264,6.1616,220.94,220.87,21.61360459]
[1731358278470,6.1616,220.94,220.89,21.61360459]
[1731358278674,30.309084,220.99,220.89,21.61360459]
[1731358278867,6.5322,220.99,220.93,21.61360459]
[1731358279687,6.5322,220.99,220.91,21.61360459]
[1731358280283,6.5322,220.99,220.96,21.61360459]
[1731358280579,6.5322,220.99,220.92,21.61360459]
[1731358281182,6.5322,220.99,220.82,6.7719]
[1731358281183,6.5322,220.99,220.94,21.61360459]
[1731358281593,6.5322,220.99,220.92,21.61360459]
[1731358282585,6.5322,220.99,220.94,21.61360459]
[1731358282788,6.5322,220.99,220.91,21.61360459]
[1731358282987,6.5322,220.99,220.93,21.61360459]
[1731358284987,6.5322,220.99,220.91,21.61360459]
[1731358285492,6.5322,220.99,220.93,21.61360459]
[1731358286086,6.5322,220.99,220.91,21.61360459]
[1731358286607,23.776884,220.98,220.89,21.61360459]
[1731358286805,6.5322,220.99,220.91,21.61360459]
[1731358286994,6.1398,221.04,220.97,21.61360459]
[1731358287184,6.1398,221.04,220.88,21.61360459]
[1731358287185,6.1398,221.04,220.99,21.61360459]
[1731358287390,6.1398,221.04,220.95,21.61360459]
[1731358287719,201.168185,220.99,220.93,21.61360459]
[1731358287904,201.168185,220.99,220.92,21.61360459]
[1731358288205,201.168185,220.99,220.95,21.61360459]
[1731358288395,201.168185,220.99,220.97,21.61360459]
[1731358289693,201.168185,220.99,220.98,20.0]
[1731358290092,201.168185,220.99,220.97,21.61360459]
[1731358291219,201.168185,220.99,220.95,21.61360459]
[1731358291589,201.168185,220.99,220.97,21.61360459]
[1731358291898,201.168185,220.99,220.98,20.0]
[1731358292090,201.168185,220.99,220.98,63.22720918]
[1731358292419,6.1646,221.16,221.09,26.47869617]
[1731358292605,6.1646,221.16,221.07,21.61360459]
[1731358293110,6.1646,221.16,221.05,21.61360459]
[1731358293417,6.1646,221.16,221.01,21.61360459]
[1731358293626,23.776884,221.15,221.03,21.61360459]
[1731358293914,23.776884,221.15,221.01,21.61360459]
[1731358294738,6.1646,221.16,221.11,21.61360459]
[1731358294923,16.517,221.18,221.11,21.61360459]
[1731358295227,16.517,221.18,221.07,21.61360459]
[1731358295433,16.517,221.18,221.08,20.0]
[1731358295724,16.517,221.18,221.09,21.61360459]
[1731358295929,16.517,221.18,221.07,21.61360459]
[1731358296428,16.517,221.18,221.06,21.61360459]
[1731358296635,23.776884,221.17,221.02,21.61360459]
[1731358297013,23.776884,221.17,220.95,6.2957]
[1731358297014,23.776884,221.17,221.0,21.61360459]
[1731358297914,23.776884,221.17,221.02,21.61360459]
[1731358298131,23.776884,221.17,221.0,21.61360459]
[1731358299436,23.776884,221.17,221.04,21.61360459]
[1731358299617,23.776884,221.17,221.01,20.0]
[1731358299618,16.517,221.18,221.06,21.61360459]
[1731358299815,16.517,221.18,220.99,21.61360459]
[1731358299816,16.517,221.18,221.08,21.61360459]
[1731358300530,16.517,221.18,221.06,21.61360459]
[1731358300841,16.517,221.18,221.02,21.61360459]
[1731358302136,23.776884,221.17,221.02,21.61360459]
[1731358302331,23.776884,221.17,221.07,21.61360459]
[1731358302642,16.517,221.18,221.07,21.61360459]
[1731358303413,16.517,221.18,221.09,21.61360459]
[1731358303620,16.517,221.18,221.07,21.61360459]
[1731358304143,6.1646,221.21,221.09,21.61360459]
[1731358304310,6.1646,221.21,221.14,21.61360459]
[1731358304828,16.1439,221.25,221.16,21.61360459]
[1731358305616,16.1439,221.25,221.08,6.2786]
[1731358305617,16.1439,221.25,221.14,21.61360459]
[1731358305818,6.2137,221.26,221.16,21.61360459]
[1731358306539,27.75265366,221.26,221.17,21.53895366]
[1731358306836,6.2137,221.26,221.21,21.53895366]
[1731358307039,21.53895366,221.28,221.19,21.53895366]
[1731358307214,21.53895366,221.26,221.19,21.53895366]
[1731358307611,21.53895366,221.26,221.17,21.53895366]
[1731358309233,21.53895366,221.24,221.17,21.53895366]
[1731358309641,22.4393,221.31,221.17,21.53895366]
[1731358309642,21.53895366,221.26,221.17,21.53895366]
[1731358310032,21.53895366,221.23,221.15,21.53895366]
[1731358310835,21.53895366,221.21,221.13,21.53895366]
[1731358311855,21.53895366,221.14,221.06,21.53895366]
[1731358312451,21.53895366,221.16,221.06,21.53895366]
[1731358313155,21.53895366,221.14,221.06,21.53895366]
[1731358313834,21.53895366,221.16,221.08,21.53895366]
[1731358314449,21.53895366,221.2,221.1,21.53895366]
[1731358314656,21.53895366,221.18,221.1,21.53895366]
[1731358315044,21.53895366,221.16,221.08,21.53895366]
[1731358315431,21.53895366,221.18,221.08,21.53895366]
[1731358315628,21.53895366,221.16,221.08,21.53895366]
[1731358315847,21.53895366,221.14,221.06,21.53895366]
[1731358316636,21.53895366,221.16,221.08,21.53895366]
[1731358316836,21.53895366,221.18,221.1,21.53895366]
[1731358317040,21.53895366,221.2,221.13,21.53895366]
[1731358317242,21.53895366,221.2,221.11,21.53895366]
[1731358317661,28.13115366,221.2,221.11,21.53895366]
[1731358318254,21.53895366,221.18,221.11,21.53895366]
[1731358318457,21.53895366,221.18,221.01,41.856164]
[1731358318458,21.53895366,221.18,221.09,21.53895366]
[1731358318750,28.13115366,221.2,221.11,21.53895366]
[1731358319151,21.53895366,221.22,221.13,21.53895366]